fUST/lending_fUST_20240813
["ID","MTS","AMOUNT","RATE_DAILY","PERIOD"]
[334704167,1723488645577,-500.0,0.0001519,2]
[334704168,1723488645589,-249.8513056,0.0001519,2]
[334704169,1723488645601,-1339.37,0.0001519,2]
[334704170,1723488645612,-6752.4,0.0001519,2]
[334704171,1723488645624,-500.0,0.0001519,2]
[334704172,1723488645635,-500.0,0.0001519,2]
[334704173,1723488645645,-500.0,0.0001519,2]
[334704174,1723488645656,-2180.46,0.0001519,2]
[334704175,1723488645666,-1217.22,0.0001519,2]
[334704176,1723488645675,-1286.35,0.0001519,2]
[334704177,1723488645685,-500.0,0.0001519,2]
[334704178,1723488645694,-500.0,0.0001519,2]
[334704179,1723488645704,-500.0,0.0001519,2]
[334704180,1723488645713,-521.71,0.0001519,2]
[334704181,1723488645723,-500.0,0.0001519,2]
[334704182,1723488645733,-500.0,0.0001519,2]
[334704183,1723488645742,-661.25,0.0001519,2]
[334704184,1723488645751,-1154.91,0.0001519,2]
[334704185,1723488645761,-500.0,0.0001519,2]
[334704186,1723488645771,-661.53,0.0001519,2]
[334704187,1723488645781,-500.0,0.0001519,2]
[334704188,1723488645792,-42173.4689264,0.00015191,2]
[334704189,1723488645804,-150.112233,0.000152,2]
[334704190,1723488645814,-631.84,0.000152,2]
[334704191,1723488645825,-500.0,0.000152,2]
[334704192,1723488645836,-565.73,0.000152,2]
[334704193,1723488645847,-503.68,0.000152,2]
[334704194,1723488645857,-615.58,0.000152,2]
[334704195,1723488645871,-500.0,0.000152,2]
[334704197,1723488645880,-740.97,0.000152,2]
[334704199,1723488645889,-500.0,0.000152,2]
[334704201,1723488645900,-500.0,0.000152,2]
[334704202,1723488645909,-500.0,0.000152,2]
[334704204,1723488645919,-500.0,0.000152,2]
[334704206,1723488645929,-500.0,0.000152,2]
[334704207,1723488645938,-500.0,0.000152,2]
[334704208,1723488645947,-562.61,0.000152,2]
[334704209,1723488645957,-776.14,0.000152,2]
[334704210,1723488645967,-500.0,0.000152,2]
[334704211,1723488645977,-500.0,0.000152,2]
[334704212,1723488645986,-500.0,0.000152,2]
[334704213,1723488645996,-500.0,0.000152,2]
[334704215,1723488646006,-500.0,0.000152,2]
[334704216,1723488646016,-834.02,0.000152,2]
[334704217,1723488646026,-1077.84,0.000152,2]
[334704218,1723488646035,-500.0,0.000152,2]
[334704219,1723488646045,-703.06,0.000152,2]
[334704220,1723488646054,-3959.06,0.000152,2]
[334704221,1723488646064,-1041.75,0.000152,2]
[334704222,1723488646074,-1206.97,0.000152,2]
[334704223,1723488646083,-500.0,0.000152,2]
[334704224,1723488646093,-500.0,0.000152,2]
[334704225,1723488646102,-500.0,0.000152,2]
[334704226,1723488646114,-500.0,0.000152,2]
[334704227,1723488646127,-500.0,0.000152,2]
[334704228,1723488646137,-593.42,0.000152,2]
[334704229,1723488646146,-500.0,0.000152,2]
[334704230,1723488646155,-500.0,0.000152,2]
[334704231,1723488646164,-500.0,0.000152,2]
[334704232,1723488646173,-734.82,0.000152,2]
[334704233,1723488646182,-823.71,0.000152,2]
[334704234,1723488646191,-500.0,0.000152,2]
[334704235,1723488646201,-500.0,0.000152,2]
[334704236,1723488646210,-639.52,0.000152,2]
[334704237,1723488646220,-2116.76,0.000152,2]
[334704238,1723488646231,-354.23779702,0.000152,2]
[334704239,1723488646241,-3225.99,0.000152,2]
[334704240,1723488646253,-500.0,0.000152,2]
[334704243,1723488646263,-500.0,0.000152,2]
[334704245,1723488646272,-985.77,0.000152,2]
[334704247,1723488646281,-500.0,0.000152,2]
[334704249,1723488646291,-500.0,0.000152,2]
[334704251,1723488646300,-689.93,0.000152,2]
[334704253,1723488646309,-500.0,0.000152,2]
[334704255,1723488646318,-578.37,0.000152,2]
[334704257,1723488646327,-500.0,0.000152,2]
[334704259,1723488646337,-451.92330967,0.000152,2]
[334704274,1723488650079,196.0,0.0001212,2]
[334704276,1723488796442,273.37336231,9.9e-05,2]
[334704282,1723488812512,273.37336231,9.9e-05,2]
[334704283,1723488815256,169.55497,0.00014261,2]
[334704285,1723488828416,273.37336231,9.9e-05,2]
[334704286,1723488844698,273.37336231,9.9e-05,2]
[334704287,1723488860493,273.37336231,9.9e-05,2]
[334704288,1723488876389,273.37336231,9.9e-05,2]
[334704291,1723488892795,273.37336231,9.9e-05,2]
[334704292,1723488909357,273.37336231,9.9e-05,2]
[334704293,1723488915239,182.4932488,0.00013699,2]
[334704294,1723488938708,273.37336231,9.9e-05,2]
[334704295,1723488954010,273.37336231,9.9e-05,2]
[334704296,1723488969932,273.37336231,9.9e-05,2]
[334704297,1723488986233,273.37336231,9.9e-05,2]
[334704298,1723489002651,234.31937184,9.9e-05,2]
[334704299,1723489006338,155.06114256,0.00012,2]
[334704300,1723489076879,639.84526611,0.00014545,2]
[334704302,1723489228625,817.03180288,0.00015,2]
[334704303,1723489415365,913.41210079,0.00015,2]
[334704304,1723489502382,472.16146,0.00015,2]
[334704305,1723489504152,5322.59176007,0.00014885,2]
[334704306,1723489538376,162.659181,0.00014247,2]
[334704307,1723489552598,-646.22421475,0.00022,30]
[334704308,1723489552834,-3707.5515705,0.00022,30]
[334704309,1723489626863,203.5352562,0.00014103,2]
[334704310,1723489631155,-1809.42272956,0.00015019,2]
[334704311,1723489632166,-608.10355466,0.00015019,2]
[334704312,1723489632189,-76.41899376,0.00015083,2]
[334704313,1723489654835,-1003.13124667,0.00023,30]
[334704314,1723489655068,-152.38,0.000232,31]
[334704315,1723489655093,-152.38,0.000232,31]
[334704316,1723489655116,-152.38,0.000232,31]
[334704317,1723489655140,-152.38,0.000232,31]
[334704318,1723489655167,-152.38,0.000232,31]
[334704319,1723489655190,-34.98875333,0.000232,31]
[334704320,1723489655584,-117.39124667,0.000232,31]
[334704321,1723489655609,-152.38,0.000232,31]
[334704322,1723489655636,-152.38,0.000232,31]
[334704323,1723489655662,-152.38,0.000232,31]
[334704324,1723489655691,-152.38,0.000232,31]
[334704325,1723489655716,-152.38,0.000232,31]
[334704326,1723489655743,-152.38,0.000241,31]
[334704327,1723489655770,-152.38,0.000241,31]
[334704328,1723489655795,-152.38,0.000241,31]
[334704329,1723489655820,-152.38,0.000241,31]
[334704330,1723489655845,-34.98875333,0.000241,31]
[334704331,1723489681871,646.22421475,0.00022,30]
[334704334,1723489758174,-300.0,0.00015008,2]
[334704335,1723489758196,-300.0,0.00015008,2]
[334704336,1723489758219,-5175.14758003,0.00015009,2]
[334704337,1723489758240,-1988.45650571,0.00015009,2]
[334704338,1723489758263,-2000.0,0.00015018,2]
[334704339,1723489758285,-1988.45650571,0.00015029,2]
[334704340,1723489758306,-1988.45650571,0.0001505,2]
[334704341,1723489758334,-1988.45650571,0.0001507,2]
[334704342,1723489758356,-1988.45650571,0.0001509,2]
[334704343,1723489758380,-81757.72696691,0.0001509,2]
[334704372,1723489832634,1364.79691625,0.00027,120]
[334704397,1723489832883,-765.24811149,0.00015018,2]
[334704398,1723489832892,-559.40188851,0.0001509,2]
[334704400,1723489832904,-1716.52419962,0.0001509,2]
[334704422,1723489833101,-4854.34694496,0.0001509,2]
[334704423,1723489833110,-1462.10389708,0.00015099,2]
[334704426,1723489833123,-336.90084323,0.00015099,2]
[334704428,1723489833133,-150.112233,0.000151,2]
[334704429,1723489833143,-500.0,0.00015104,2]
[334704431,1723489833154,-332.68619852,0.00015104,2]
[334704433,1723489833164,-500.0,0.00015104,2]
[334704435,1723489833174,-180.30072525,0.00015104,2]
[334704437,1723489833196,-319.69927475,0.00015104,2]
[334704440,1723489833206,-500.0,0.00015104,2]
[334704442,1723489833216,-500.0,0.00015104,2]
[334704444,1723489833226,-502.11294762,0.00015104,2]
[334704446,1723489833237,-282.28514945,0.00015104,2]
[334704448,1723489833249,-218.86116356,0.00015104,2]
[334704450,1723489833259,-500.0,0.00015104,2]
[334704452,1723489833269,-502.51194388,0.00015104,2]
[334704454,1723489833279,-500.0,0.00015104,2]
[334704456,1723489833288,-500.0,0.00015104,2]
[334704458,1723489833298,-500.0,0.00015104,2]
[334704459,1723489833308,-176.10189256,0.00015104,2]
[334704532,1723489838942,-323.89810744,0.00015104,2]
[334704534,1723489838955,-500.0,0.00015104,2]
[334704536,1723489838965,-258.9285318,0.00015104,2]
[334704538,1723489838975,-500.0,0.00015104,2]
[334704540,1723489838986,-300.0,0.00015104,2]
[334704542,1723489838996,-300.0,0.00015104,2]
[334704544,1723489839006,-500.0,0.00015105,2]
[334704546,1723489839016,-287.24018691,0.00015105,2]
[334704548,1723489839027,-26.35809619,0.00015105,2]
[334704551,1723489839044,-473.64190381,0.00015105,2]
[334704553,1723489839054,-500.0,0.00015105,2]
[334704555,1723489839064,-500.0,0.00015105,2]
[334704557,1723489839075,-44.69830361,0.00015105,2]
[334704559,1723489839087,-280.51921513,0.00015105,2]
[334704561,1723489839100,-174.78248126,0.00015105,2]
[334704563,1723489839111,-500.0,0.00015105,2]
[334704564,1723489839121,-500.0,0.00015105,2]
[334704565,1723489839131,-500.0,0.00015105,2]
[334704566,1723489839141,-504.33534865,0.00015105,2]
[334704567,1723489839152,-500.0,0.00015105,2]
[334704568,1723489839161,-500.0,0.00015105,2]
[334704569,1723489839170,-500.0,0.00015105,2]
[334704570,1723489839180,-500.0,0.00015105,2]
[334704571,1723489839189,-500.0,0.00015105,2]
[334704572,1723489839200,-500.0,0.00015105,2]
[334704573,1723489839210,-500.0,0.00015105,2]
[334704574,1723489839221,-500.0,0.00015105,2]
[334704575,1723489839231,-500.0,0.00015105,2]
[334704576,1723489839241,-450.0,0.00015105,2]
[334704577,1723489839251,-1311.12,0.00015105,2]
[334704578,1723489839260,-810.93,0.00015105,2]
[334704579,1723489839270,-62486.9014478,0.00015106,2]
[334704580,1723489839280,-3633.48933917,0.00015106,2]
[334704581,1723489839291,-62486.9014478,0.00015107,2]
[334704582,1723489839301,-500.0,0.00015107,2]
[334704583,1723489839312,-500.0,0.00015107,2]
[334704584,1723489839321,-500.0,0.00015107,2]
[334704585,1723489839333,-7924.3,0.00015107,2]
[334704586,1723489839343,-1417.21,0.00015107,2]
[334704587,1723489839352,-859.2,0.00015107,2]
[334704588,1723489839362,-506.83263713,0.00015107,2]
[334704589,1723489839372,-871.33,0.00015107,2]
[334704590,1723489839382,-998.40255591,0.00015107,2]
[334704591,1723489839392,-62486.9014478,0.00015108,2]
[334704592,1723489839402,-500.0,0.00015109,2]
[334704593,1723489839411,-500.0,0.00015109,2]
[334704594,1723489839421,-500.0,0.00015109,2]
[334704595,1723489839430,-500.0,0.00015109,2]
[334704596,1723489839442,-500.0,0.00015109,2]
[334704597,1723489839453,-631.54,0.00015109,2]
[334704598,1723489839462,-630.83,0.00015109,2]
[334704599,1723489839472,-500.0,0.00015109,2]
[334704600,1723489839482,-500.0,0.00015109,2]
[334704601,1723489839492,-591.66,0.00015109,2]
[334704602,1723489839503,-500.0,0.00015109,2]
[334704603,1723489839513,-525.3092981,0.00015109,2]
[334704604,1723489839523,-500.0,0.00015109,2]
[334704605,1723489839535,-500.0,0.00015109,2]
[334704606,1723489839546,-500.0,0.00015109,2]
[334704607,1723489839557,-500.0,0.00015109,2]
[334704608,1723489839567,-500.0,0.00015109,2]
[334704609,1723489839577,-1331.73,0.00015109,2]
[334704610,1723489839587,-500.0,0.00015109,2]
[334704611,1723489839596,-1020.82,0.00015109,2]
[334704612,1723489839606,-500.0,0.00015109,2]
[334704613,1723489839615,-500.0,0.00015109,2]
[334704614,1723489839625,-500.0,0.00015109,2]
[334704615,1723489839636,-500.0,0.00015109,2]
[334704616,1723489839647,-621.77354407,0.00015109,2]
[334704617,1723489839659,-546.63,0.00015109,2]
[334704618,1723489839669,-500.0,0.00015109,2]
[334704619,1723489839678,-500.0,0.00015109,2]
[334704620,1723489839688,-503.70916886,0.00015109,2]
[334704621,1723489839703,-733.53,0.00015109,2]
[334704622,1723489839717,-544.37,0.00015109,2]
[334704623,1723489839727,-500.0,0.00015109,2]
[334704624,1723489839737,-500.0,0.00015109,2]
[334704625,1723489839749,-1108.41,0.00015109,2]
[334704626,1723489839762,-500.0,0.00015109,2]
[334704627,1723489839773,-1023.67,0.00015109,2]
[334704628,1723489839782,-538.2,0.00015109,2]
[334704629,1723489839794,-500.0,0.00015109,2]
[334704630,1723489839805,-951.17,0.00015109,2]
[334704631,1723489839815,-500.0,0.00015109,2]
[334704632,1723489839827,-500.0,0.00015109,2]
[334704633,1723489839837,-602.75,0.00015109,2]
[334704634,1723489839848,-500.0,0.00015109,2]
[334704635,1723489839858,-500.0,0.00015109,2]
[334704636,1723489839869,-1297.74,0.00015109,2]
[334704637,1723489839879,-500.0,0.00015109,2]
[334704638,1723489839889,-1946.62,0.00015109,2]
[334704639,1723489839899,-500.0,0.00015109,2]
[334704640,1723489839909,-500.0,0.00015109,2]
[334704641,1723489839919,-1155.08,0.00015109,2]
[334704642,1723489839929,-567.51,0.00015109,2]
[334704643,1723489839939,-2894.30402062,0.0001511,2]
[334704644,1723489839952,-15743.14567059,0.00015116,2]
[334704645,1723489839962,-500.0,0.00015116,2]
[334704646,1723489839971,-4082.29,0.00015116,2]
[334704647,1723489839980,-1282.59,0.00015116,2]
[334704648,1723489839990,-1144.15,0.00015116,2]
[334704649,1723489840000,-4936.95,0.00015116,2]
[334704650,1723489840009,-485.3864207,0.00015116,2]
[334704651,1723489840019,-500.0,0.00015116,2]
[334704652,1723489840029,-1730.61,0.00015116,2]
[334704653,1723489840039,-500.0,0.00015116,2]
[334704654,1723489840050,-579.27,0.00015116,2]
[334704655,1723489840060,-500.0,0.00015116,2]
[334704656,1723489840070,-1661.26,0.00015116,2]
[334704657,1723489840080,-1729.03,0.00015116,2]
[334704658,1723489840090,-1043.18,0.00015116,2]
[334704659,1723489840099,-500.0,0.00015116,2]
[334704660,1723489840109,-8052.65,0.00015116,2]
[334704661,1723489840119,-1592.67,0.00015116,2]
[334704662,1723489840129,-2579.05,0.00015116,2]
[334704663,1723489840140,-1451.6,0.00015116,2]
[334704664,1723489840149,-1532.03,0.00015116,2]
[334704665,1723489840159,-810.63,0.00015116,2]
[334704666,1723489840169,-500.0,0.00015116,2]
[334704667,1723489840179,-638.26,0.00015116,2]
[334704668,1723489840188,-500.0,0.00015116,2]
[334704669,1723489840201,-437.23647548,0.00015117,2]
[334704670,1723489840211,-500.0,0.00015117,2]
[334704671,1723489840221,-500.0,0.00015117,2]
[334704672,1723489840231,-402.91190456,0.00015117,2]
[334704674,1723489840241,-588.95,0.00015117,2]
[334704675,1723489840251,-500.0,0.00015117,2]
[334704676,1723489840260,-226.02807599,0.00015117,2]
[334704677,1723489840270,-500.0,0.00015117,2]
[334704678,1723489840280,-584.54,0.00015117,2]
[334704679,1723489840290,-625.65507654,0.00015117,2]
[334704681,1723489840301,-710.46,0.00015117,2]
[334704683,1723489840310,-500.0,0.00015117,2]
[334704685,1723489840320,-500.0,0.00015117,2]
[334704687,1723489840329,-538.67,0.00015117,2]
[334704689,1723489840340,-500.0,0.00015117,2]
[334704691,1723489840350,-336.09245174,0.00015117,2]
[334704693,1723489840360,-500.0,0.00015117,2]
[334704695,1723489840369,-500.0,0.00015117,2]
[334704698,1723489840379,-905.75,0.00015117,2]
[334704700,1723489840388,-500.0,0.00015117,2]
[334704703,1723489840398,-500.0,0.00015117,2]
[334704705,1723489840408,-500.0,0.00015117,2]
[334704707,1723489840417,-500.0,0.00015117,2]
[334704709,1723489840426,-500.0,0.00015117,2]
[334704711,1723489840436,-500.0,0.00015117,2]
[334704712,1723489840448,-815.76,0.00015117,2]
[334704713,1723489840457,-500.0,0.00015117,2]
[334704714,1723489840467,-649.34,0.00015117,2]
[334704715,1723489840477,-500.0,0.00015117,2]
[334704716,1723489840486,-500.0,0.00015117,2]
[334704717,1723489840495,-500.0,0.00015117,2]
[334704718,1723489840505,-500.0,0.00015117,2]
[334704719,1723489840515,-500.0,0.00015117,2]
[334704720,1723489840525,-500.0,0.00015117,2]
[334704721,1723489840534,-500.0,0.00015117,2]
[334704722,1723489840543,-1192.61,0.00015117,2]
[334704723,1723489840553,-500.0,0.00015117,2]
[334704725,1723489840563,-500.0,0.00015117,2]
[334704727,1723489840573,-832.06,0.00015117,2]
[334704729,1723489840583,-511.68645328,0.00015117,2]
[334704731,1723489840592,-500.0,0.00015117,2]
[334704734,1723489840606,-500.0,0.00015117,2]
[334704736,1723489840615,-284.00825652,0.00015117,2]
[334704738,1723489840625,-4530.68,0.00015117,2]
[334704740,1723489840634,-506.08398547,0.00015117,2]
[334704742,1723489840644,-500.0,0.00015117,2]
[334704744,1723489840654,-1256.33,0.00015117,2]
[334704745,1723489840664,-500.0,0.00015117,2]
[334704747,1723489840674,-500.0,0.00015117,2]
[334704749,1723489840684,-500.0,0.00015117,2]
[334704751,1723489840697,-500.0,0.00015117,2]
[334704753,1723489840706,-500.0,0.00015117,2]
[334704755,1723489840716,-500.0,0.00015117,2]
[334704756,1723489840727,-737.86,0.00015117,2]
[334704758,1723489840737,-500.0,0.00015117,2]
[334704759,1723489840749,-500.0,0.00015117,2]
[334704761,1723489840761,-500.0,0.00015117,2]
[334704763,1723489840771,-911.95,0.00015117,2]
[334704765,1723489840780,-500.0,0.00015117,2]
[334704766,1723489840791,-579.27,0.00015117,2]
[334704768,1723489840800,-500.0,0.00015117,2]
[334704770,1723489840810,-500.0,0.00015117,2]
[334704772,1723489840820,-500.0,0.00015117,2]
[334704774,1723489840831,-500.0,0.00015117,2]
[334704776,1723489840841,-2754.04,0.00015117,2]
[334704778,1723489840850,-506.07076068,0.00015117,2]
[334704780,1723489840860,-787.11,0.00015117,2]
[334704781,1723489840870,-4002.97,0.00015117,2]
[334704783,1723489840879,-624.96,0.00015117,2]
[334704785,1723489840888,-500.0,0.00015117,2]
[334704787,1723489840898,-1206.19,0.00015117,2]
[334704789,1723489840908,-500.0,0.00015117,2]
[334704791,1723489840918,-500.0,0.00015117,2]
[334704793,1723489840929,-500.0,0.00015117,2]
[334704795,1723489840938,-500.0,0.00015117,2]
[334704797,1723489840949,-500.0,0.00015117,2]
[334704799,1723489840958,-553.68,0.00015117,2]
[334704802,1723489840967,-505.34929325,0.00015117,2]
[334704803,1723489840977,-835.57,0.00015117,2]
[334704805,1723489840986,-711.02,0.00015117,2]
[334704806,1723489840996,-558.71,0.00015117,2]
[334704809,1723489841005,-500.0,0.00015117,2]
[334704810,1723489841015,-500.0,0.00015117,2]
[334704812,1723489841025,-555.00322272,0.00015117,2]
[334704813,1723489841034,-992.91,0.00015117,2]
[334704814,1723489841043,-151.0,0.00015117,2]
[334704815,1723489841052,-2147.79,0.00015117,2]
[334704816,1723489841062,-3273.94,0.00015117,2]
[334704817,1723489841071,-386.42793739,0.00015117,2]
[334704818,1723489841080,-500.0,0.00015117,2]
[334704819,1723489841090,-500.0,0.00015118,2]
[334704820,1723489841110,-500.0,0.00015118,2]
[334704821,1723489841122,-500.0,0.00015118,2]
[334704822,1723489841131,-500.0,0.00015118,2]
[334704823,1723489841140,-528.54547554,0.00015118,2]
[334704824,1723489841150,-552.1964244,0.00015118,2]
[334704825,1723489841160,-500.0,0.00015118,2]
[334704826,1723489841169,-500.0,0.00015118,2]
[334704827,1723489841178,-500.0,0.00015118,2]
[334704828,1723489841188,-500.0,0.00015118,2]
[334704829,1723489841199,-523.76271671,0.00015118,2]
[334704830,1723489841208,-500.0,0.00015118,2]
[334704831,1723489841217,-550.78,0.00015118,2]
[334704832,1723489841228,-500.0,0.00015118,2]
[334704833,1723489841237,-946.65,0.00015118,2]
[334704834,1723489841247,-500.0,0.00015118,2]
[334704835,1723489841256,-500.0,0.00015118,2]
[334704836,1723489841266,-500.0,0.00015118,2]
[334704837,1723489841276,-500.0,0.00015118,2]
[334704838,1723489841285,-1017.56,0.00015118,2]
[334704839,1723489841295,-500.0,0.00015118,2]
[334704840,1723489841306,-500.0,0.00015118,2]
[334704841,1723489841317,-500.0,0.00015118,2]
[334704842,1723489841328,-500.0,0.00015118,2]
[334704843,1723489841338,-489.41896205,0.00015118,2]
[334704844,1723489842920,-586.52,0.00015118,2]
[334704845,1723489843024,-354.91103795,0.00015118,2]
[334704846,1723489843033,-500.0,0.00015118,2]
[334704847,1723489843043,-500.0,0.00015118,2]
[334704848,1723489843052,-500.0,0.00015118,2]
[334704849,1723489843062,-185.89120285,0.00015118,2]
[334704850,1723489843074,-314.10879715,0.00015118,2]
[334704851,1723489843084,-500.0,0.00015118,2]
[334704852,1723489843093,-608.28,0.00015118,2]
[334704853,1723489843103,-500.0,0.00015118,2]
[334704854,1723489843113,-500.0,0.00015118,2]
[334704855,1723489843122,-500.0,0.00015118,2]
[334704857,1723489843132,-500.0,0.00015118,2]
[334704859,1723489843141,-930.04,0.00015118,2]
[334704860,1723489843151,-1445.8,0.00015118,2]
[334704861,1723489843161,-1172.27,0.00015118,2]
[334704862,1723489843170,-995.89,0.00015118,2]
[334704863,1723489843179,-500.0,0.00015118,2]
[334704864,1723489843189,-500.0,0.00015118,2]
[334704865,1723489843199,-500.0,0.00015118,2]
[334704866,1723489843208,-552.53,0.00015118,2]
[334704867,1723489843217,-500.0,0.00015118,2]
[334704868,1723489843227,-500.0,0.00015118,2]
[334704869,1723489843236,-6310.06,0.00015118,2]
[334704870,1723489843245,-500.0,0.00015118,2]
[334704871,1723489843255,-579.27,0.00015118,2]
[334704872,1723489843265,-602.8,0.00015118,2]
[334704873,1723489843275,-500.0,0.00015118,2]
[334704874,1723489843284,-1204.03,0.00015118,2]
[334704875,1723489843293,-500.0,0.00015118,2]
[334704876,1723489843302,-500.0,0.00015118,2]
[334704877,1723489843312,-500.0,0.00015118,2]
[334704878,1723489843321,-719.89,0.00015118,2]
[334704879,1723489843331,-500.0,0.00015118,2]
[334704880,1723489843340,-500.0,0.00015118,2]
[334704881,1723489843350,-500.0,0.00015118,2]
[334704882,1723489843362,-500.0,0.00015118,2]
[334704883,1723489843371,-500.0,0.00015118,2]
[334704884,1723489843380,-514.91161468,0.00015118,2]
[334704885,1723489843389,-500.0,0.00015118,2]
[334704886,1723489843399,-500.0,0.00015118,2]
[334704887,1723489843408,-803.84,0.00015118,2]
[334704888,1723489843419,-500.0,0.00015118,2]
[334704889,1723489843428,-500.0,0.00015118,2]
[334704890,1723489843438,-503.56530414,0.00015118,2]
[334704891,1723489843449,-500.0,0.00015118,2]
[334704892,1723489843462,-500.0,0.00015118,2]
[334704893,1723489843472,-503.97874758,0.00015118,2]
[334704894,1723489843481,-741.84,0.00015118,2]
[334704895,1723489843491,-500.0,0.00015118,2]
[334704896,1723489843501,-500.0,0.00015118,2]
[334704898,1723489843510,-305.51303156,0.00015118,2]
[334704899,1723489843520,-998.83,0.00015118,2]
[334704900,1723489843529,-500.0,0.00015118,2]
[334704901,1723489843539,-500.0,0.00015118,2]
[334704902,1723489843548,-500.0,0.00015118,2]
[334704903,1723489843558,-62486.9014478,0.0001517,2]
[334704904,1723489843567,-151.0,0.0001517,2]
[334704905,1723489843577,-152.797487,0.0001517,2]
[334704907,1723489843586,-151.0,0.0001517,2]
[334704909,1723489843595,-579.27,0.0001518,2]
[334704910,1723489843605,-25388.35566053,0.00015185,2]
[334704911,1723489843615,-579.27,0.00015189,2]
[334704912,1723489843624,-579.27,0.00015189,2]
[334704913,1723489843634,-500.0,0.0001519,2]
[334704914,1723489843644,-500.0,0.0001519,2]
[334704915,1723489843654,-500.0,0.0001519,2]
[334704916,1723489843664,-771.24,0.0001519,2]
[334704917,1723489843673,-500.0,0.0001519,2]
[334704918,1723489843683,-500.0,0.0001519,2]
[334704919,1723489843693,-500.0,0.0001519,2]
[334704920,1723489843702,-500.0,0.0001519,2]
[334704921,1723489843712,-500.0,0.0001519,2]
[334704922,1723489843723,-500.0,0.0001519,2]
[334704923,1723489843733,-503.10120113,0.0001519,2]
[334704924,1723489843745,-500.0,0.0001519,2]
[334704925,1723489843760,-500.0,0.0001519,2]
[334704926,1723489843770,-500.0,0.0001519,2]
[334704927,1723489843779,-500.0,0.0001519,2]
[334704928,1723489843788,-500.0,0.0001519,2]
[334704929,1723489843799,-500.0,0.0001519,2]
[334704930,1723489843809,-379.5,0.0001519,2]
[334704931,1723489843818,-500.0,0.0001519,2]
[334704932,1723489843828,-574.8,0.0001519,2]
[334704933,1723489843837,-553.09578431,0.0001519,2]
[334704934,1723489843847,-500.0,0.0001519,2]
[334704935,1723489843856,-500.0,0.0001519,2]
[334704936,1723489843866,-500.0,0.0001519,2]
[334704938,1723489843877,-500.0,0.0001519,2]
[334704940,1723489843891,-500.0,0.0001519,2]
[334704941,1723489843904,-518.39715278,0.0001519,2]
[334704942,1723489843916,-500.0,0.0001519,2]
[334704943,1723489843926,-500.0,0.0001519,2]
[334704944,1723489843935,-500.0,0.0001519,2]
[334704945,1723489843946,-500.0,0.0001519,2]
[334704946,1723489843956,-500.0,0.0001519,2]
[334704947,1723489843966,-500.0,0.0001519,2]
[334704948,1723489843975,-500.0,0.0001519,2]
[334704949,1723489843984,-500.0,0.0001519,2]
[334704950,1723489843994,-428.29888972,0.0001519,2]
[334704951,1723489844004,-500.0,0.0001519,2]
[334704952,1723489844016,-500.0,0.0001519,2]
[334704954,1723489844025,-500.0,0.0001519,2]
[334704956,1723489844036,-500.0,0.0001519,2]
[334704957,1723489844047,-592.65,0.0001519,2]